Cogmind - Beta 17 @@@ ROGUE MODE // 2026.07.28 @ 18:31:12 Player: JP Result: Self-destructed Performance ------------- Evolutions (3) 1500 Regions Visited (7) 1400 Robots Destroyed (38) 190 Value Destroyed (840) 840 Prototype IDs (0) 0 Alien Tech Used (0) 0 Bonus (581) 581 TOTAL SCORE: 4511 Bonus ------- Follower Combat Kills 81 Entered DSFs 500 Cogmind --------- Core Integrity 470/700 Matter 283/300 Energy 150/150 System Corruption 1% Temperature Cool (0) Movement Walking (115) Location -7/DSF Parts ------- > --- POWER (1) -------- Light Angular Momentum Engine > --- PROPULSION (3) --- Improved Aluminum Leg Carbon-fiber Leg Improved Carbon-fiber Leg > --- UTILITY (7) ------ Medium Storage Unit Reactive Plating Makeshift Hacking Suite > --- WEAPON (2) ------- Great Maul > --- INVENTORY (10) --- Improved Deuterium Engine Improved Deuterium Engine Improved Aluminum Leg Carbon-fiber Leg Carbon-fiber Leg Carbon-fiber Leg Wheel Medium Storage Unit Peak State ------------ > --- POWER ------------ Light Angular Momentum Engine > --- PROPULSION ------- Carbon-fiber Leg Carbon-fiber Leg Carbon-fiber Leg > --- UTILITY ---------- Heat Sink Medium Storage Unit Signal Interpreter Light Armor Plating Reactive Plating Reactive Plating Makeshift Hacking Suite > --- WEAPON ----------- Heavy Laser Great Maul > --- INVENTORY -------- Improved Aluminum Leg Improved Aluminum Leg Carbon-fiber Leg Wheel Medium Storage Unit Reactive Plating Rocket Launcher [Rating: 36] Favorites ----------- Power Ion Engine Engine Ion Engine Propulsion Carbon-fiber Leg Treads Light Treads Leg Carbon-fiber Leg Utility Medium Storage Unit Device Disposable Heat Sink Storage Medium Storage Unit Processor Signal Interpreter Hackware Makeshift Hacking Suite Protection Reactive Plating Weapon Particle Cannon Energy Gun Heavy Laser Energy Cannon Particle Cannon Ballistic Gun Assault Rifle Launcher Rocket Launcher Impact Weapon Great Maul Build | -11 -10 -10 -10 -9 -8 -7 -7 ------- Run | Yrd Mat Min Exi Min Mat Fac DSF Slots Evolved 6 | . . . . . 4 2 . Power . | . . . . . . . . Propulsion 1 | . . . . . 1 . . Utility 5 | . . . . . 3 2 . Weapon . | . . . . . . . . Parts Attached 40 | 6 6 4 . 2 17 2 3 Power 3 | 1 . . . . 2 . . Engine 3 | 1 . . . . 2 . . Core . | . . . . . . . . Reactor . | . . . . . . . . Propulsion 12 | 2 2 2 . 1 4 . 1 Treads 2 | 2 . . . . . . . Leg 10 | . 2 2 . 1 4 . 1 Wheel . | . . . . . . . . Hover . | . . . . . . . . Flight . | . . . . . . . . Utility 15 | 1 2 1 . 1 7 2 1 Device 5 | . 1 1 . 1 2 . . Storage 3 | 1 1 . . . 1 . . Processor 1 | . . . . . 1 . . Hackware 1 | . . . . . 1 . . Protection 5 | . . . . . 2 2 1 Artifact . | . . . . . . . . Weapon 10 | 2 2 1 . . 4 . 1 Energy Gun 2 | . . . . . 2 . . Energy Cannon 3 | . 2 1 . . . . . Ballistic Gun 2 | 2 . . . . . . . Ballistic Cannon . | . . . . . . . . Launcher 1 | . . . . . . . 1 Special Weapon . | . . . . . . . . Impact Weapon 2 | . . . . . 2 . . Slashing Weapon . | . . . . . . . . Piercing Weapon . | . . . . . . . . Special Melee Weapon . | . . . . . . . . Unidentified Prototypes . | . . . . . . . . Corrupted Parts 1 | . . . . . . . 1 System Corruption 1 | . . . . . . . 1 Parts Lost 8 | . . 1 . . 1 . 6 Power . | . . . . . . . . Propulsion . | . . . . . . . . Utility 5 | . . . . . 1 . 4 Weapon 3 | . . 1 . . . . 2 Highest Loss Streak 3 | . . 1 . . 1 . 3 To Critical Strikes . | . . . . . . . . Average Backups 8 | 2 8 8 8 10 8 7 7 Power . | . 1 1 1 1 . . 1 Propulsion 3 | 1 2 3 3 3 2 4 4 Utility 3 | . 3 3 3 4 4 2 1 Weapon 1 | . 1 1 1 1 1 1 . Tool/Special . | . . . . . . . . Unused Backups 8 | . 3 . 1 . . . 4 Power 2 | . . . . . . . 2 Propulsion 3 | . 2 . . . . . 1 Utility 1 | . . . . . . . 1 Weapon 2 | . 1 . 1 . . . . Tool/Special . | . . . . . . . . Average Slot Usage (%) 96 | . 98 99 96 98 95 99 86 Engine 12 | . 14 14 14 14 9 7 7 Treads 2 | . 12 . . . . . . Leg 24 | . 14 28 24 26 27 23 23 Device 12 | . 13 14 14 13 12 7 6 Storage 12 | . 14 14 14 14 9 7 7 Processor 1 | . . . . . 8 7 1 Hackware 1 | . . . . . 2 7 7 Protection 3 | . . . . . 8 22 16 Energy Gun 1 | . . . . . 4 7 6 Energy Cannon 21 | . 26 27 28 28 8 . . Impact Weapon 1 | . . . . . 4 7 7 Peak Build Rating 36 | 6 13 14 14 17 31 36 36 Average Rating 17 | 4 11 13 13 16 22 35 34 On Entrance 16 | . 6 13 14 13 16 31 36 Avg Prop Armor Cover (%) . | . . . . . . . . Naked Turns . | . . . . . . . . Heaviest Build 51 | 14 24 24 24 24 31 51 51 Greatest Support 48 | 40 40 28 28 35 48 45 46 Greatest Overweight (x) 1 | . 1 . 1 1 . 1 1 Average Overweight (x) . | . . . . . . 1 . Largest Inventory Capacity 10 | 8 10 10 10 10 10 10 10 Average Capacity 9 | 7 9 10 10 10 10 10 10 Most Carried 10 | 5 10 10 10 10 10 8 9 Average Carried 8 | 2 8 8 8 9 8 7 7 Final Capacity 10 | 8 10 10 10 10 10 10 10 Final Carried 10 | 5 10 8 10 10 9 7 8 Class Distribution -------------------- 82% | Mutant 17% | Scavenger-Mutant Dominant Class ---------------- Mutant | -10/Materials Mutant | -10/Mines Mutant | -10/Exiles Mutant | -9/Mines Mutant | -8/Materials Scavenger-Mutant | -7/Factory Scavenger-Mutant | -7/DSF Resources | -11 -10 -10 -10 -9 -8 -7 -7 ----------- Run | Yrd Mat Min Exi Min Mat Fac DSF Matter Collected 625 | 221 99 40 . 18 150 . 97 Remotely . | . . . . . . . . Salvage Created 1216 | . 192 114 . 164 464 . 282 Parts 73 | . 19 11 . 10 28 . 5 Haulers Intercepted 3 | . 1 . . . 2 . . Recyclers Shooed 3 | . . . . 1 2 . . Parts Field Recycled . | . . . . . . . . Retrieved Matter . | . . . . . . . . Parts Self-Destructed . | . . . . . . . . Prevented . | . . . . . . . . Parts Restored . | . . . . . . . . Kills | -11 -10 -10 -10 -9 -8 -7 -7 ------- Run | Yrd Mat Min Exi Min Mat Fac DSF Combat Hostiles Destroyed 30 | . 6 7 . 4 8 . 5 Melee 3 | . . . . . 2 . 1 Guns 1 | . . . . . . . 1 Cannons 22 | . 6 7 . 4 5 . . Classes Destroyed 11 | . 3 . . 3 3 . 2 Worker 2 | . . . . . 2 . . Hauler 3 | . 1 . . . 2 . . Recycler 1 | . . . . 1 . . . Watcher 2 | . 2 . . . . . . Swarmer 18 | . 6 7 . 2 3 . . Grunt 6 | . . . . 1 3 . 2 Duelist 1 | . . . . 1 . . . Sentry 1 | . . . . . 1 . . Specialist 2 | . . . . . . . 2 Hunter 1 | . . . . . 1 . . Heavy 1 | . . . . . . . 1 Best Kill Streak 5 | . 3 3 . 3 5 . 2 Combat Bots Only 3 | . 3 3 . 2 3 . 2 Max Kills in Single Turn 1 | . 1 1 . 1 1 . 1 Gunslinging . | . . . . . . . . Exploded . | . . . . . . . . Melee 1 | . . . . . 1 . 1 Uniques/NPCs Destroyed . | . . . . . . . . Combat | -11 -10 -10 -10 -9 -8 -7 -7 -------- Run | Yrd Mat Min Exi Min Mat Fac DSF Hostile Shots Fired 205 | . 23 48 . 14 35 . 85 Missed 41 | . 3 7 . 4 4 . 23 Hits 164 | . 20 41 . 10 31 . 62 Melee 3 | . . . . . . . 3 Projectile 161 | . 20 41 . 10 31 . 59 AOE 3 | . . . . 3 . . . Critical Strikes 8 | . . . . . 4 . 4 Damage Taken 2391 | . 164 327 . 210 347 . 1343 Core 457 | . 22 49 . 96 60 . 230 Absorbed by Shields . | . . . . . . . . Ignored by Resistances 170 | . . . . . . . 170 Core Remaining (%) 74 | 100 . . . 33 89 . . Volleys Fired 75 | . 14 20 . 11 23 . 7 Largest 2 | . 2 2 . 2 2 . 1 Hottest 136 | . 136 136 . 136 136 . 69 Shots Fired 132 | . 28 35 . 22 40 . 7 Gun 9 | . . . . . 6 . 3 Cannon 119 | . 28 35 . 22 34 . . Launcher 4 | . . . . . . . 4 Special . | . . . . . . . . Kinetic . | . . . . . . . . Thermal 128 | . 28 35 . 22 40 . 3 Explosive 4 | . . . . . . . 4 Electromagnetic . | . . . . . . . . Robot Hit Streak 8 | . 6 3 . 5 5 . 8 Robot Miss Streak 7 | . 2 5 . 4 7 . . Penetration Max . | . . . . . . . . Secondary Targets . | . . . . . . . . Shots Hit Robots 75 | . 14 10 . 9 26 . 16 Core Hits 46 | . 9 7 . 6 11 . 13 Critical Kills 2 | . . . . . 1 . 1 Critical Parts Destroyed 4 | . . . . . 1 . 3 Critical Strikes 7 | . . . . . 3 . 4 Burn 1 | . . . . . 1 . . Smash 6 | . . . . . 2 . 4 Melee Attacks 22 | . . . . . 7 1 14 Impact 22 | . . . . . 7 1 14 Slashing . | . . . . . . . . Piercing . | . . . . . . . . Sneak Attacks 4 | . . . . . 4 . . Combat Hostiles . | . . . . . . . . Follow-up Attacks . | . . . . . . . . Damage Inflicted 2606 | . 308 205 . 266 953 . 874 Guns 99 | . . . . . 43 . 56 Cannons 1087 | . 308 205 . 244 330 . . Explosions 406 | . . . . . . . 406 Melee 987 | . . . . . 575 . 412 Ramming 27 | . . . . 22 5 . . Kinetic . | . . . . . . . . Thermal 1186 | . 308 205 . 244 373 . 56 Explosive 406 | . . . . . . . 406 Electromagnetic . | . . . . . . . . Impact 987 | . . . . . 575 . 412 Slashing . | . . . . . . . . Piercing . | . . . . . . . . Highest Corruption 1 | . . . . . . . 1 Average Corruption 1 | . . . . . . . 1 Corruption Purged . | . . . . . . . . Corruption Blocked . | . . . . . . . . Overload Shots . | . . . . . . . . Overflow Damage 627 | . 2 . . 1 404 . 220 Projectiles 3 | . 2 . . 1 . . . Explosions . | . . . . . . . . Melee 624 | . . . . . 404 . 220 Knockbacks 4 | . . . . . 1 . 3 Impact 4 | . . . . . 1 . 3 Kinetic . | . . . . . . . . Secondary . | . . . . . . . . Self-Inflicted Damage . | . . . . . . . . Shots . | . . . . . . . . Rammed . | . . . . . . . . Targets Rammed 5 | . . . . 4 1 . . Kicked 5 | . . . . 4 1 . . Crushed . | . . . . . . . . Highest Temperature 195 | . 187 195 . 185 144 . . Average Temperature 85 | . 82 109 . 92 55 . . Received Heat Transfer 495 | . . . . 18 126 . 351 Siege Activations . | . . . . . . . . Martial Activations . | . . . . . . . . Shielding Activations . | . . . . . . . . Robots Disrupted . | . . . . . . . . Combat Hostiles . | . . . . . . . . Robots Corrupted 5 | . . . . . 2 . 3 Combat Hostiles 4 | . . . . . 1 . 3 Parts Fried 12 | . . . . . 3 . 9 Impact Corruptions 13 | . . . . . 7 . 6 Robots Melted . | . . . . . . . . Combat Hostiles . | . . . . . . . . Parts Melted 3 | . 1 . . 2 . . . Heat Transferred 2257 | . 555 370 . 444 777 . 111 Parts Sabotaged . | . . . . . . . . Parts Stolen . | . . . . . . . . Parts Stripped . | . . . . . . . . Power Chain Reactions . | . . . . . . . . Alert | -11 -10 -10 -10 -9 -8 -7 -7 ------- Run | Yrd Mat Min Exi Min Mat Fac DSF Maximum Alert Level . | . . . . . . . . Low Security (%) 100 | 100 100 100 . 100 100 100 100 Level 1 . | . . . . . . . . Level 2 . | . . . . . . . . Level 3 . | . . . . . . . . Level 4 . | . . . . . . . . Level 5 . | . . . . . . . . High Security . | . . . . . . . . Max Security . | . . . . . . . . Peak Influence 163 | . 69 128 . 66 119 40 163 Initial 40 | . . 23 . . 19 40 . Average 34 | . 17 53 . 13 58 11 56 Influence Increases 1075 | . 198 235 . 172 274 13 183 Destroy 0b10 Robot/C 700 | . 120 180 . 120 180 . 100 Destroy 0b10 Robot/NC 50 | . 15 . . 5 20 . 10 Destroy Leader 140 | . 26 30 . 20 44 . 20 Allied During Kill 23 | . . 10 . 12 1 . . Successful Hack 30 | . 7 . . . 11 12 . Disable Machine 15 | . 15 . . . . . . Destroy Structure 12 | . . . . . 3 1 8 Lose Combat Pursuer 105 | . 15 15 . 15 15 . 45 Influence Decreases 942 | . 137 296 . 122 234 103 50 Entered New Map 119 | . . 38 . . 31 50 . Time Decay 680 | . 137 228 . 69 193 53 . Lost Part 70 | . . 10 . . 10 . 50 Lost Ally 73 | . . 20 . 53 . . . Squads Dispatched 2 | . . . . . . . 2 Investigation . | . . . . . . . . Extermination . | . . . . . . . . Reinforcement 2 | . . . . . . . 2 Assault . | . . . . . . . . Garrison . | . . . . . . . . Intercept . | . . . . . . . . Searches Triggered . | . . . . . . . . Construction Impeded . | . . . . . . . . Haulers Reinforced . | . . . . . . . . Active Scanning Responses . | . . . . . . . . Cargo Convoy Interrupts . | . . . . . . . . Stealth | -11 -10 -10 -10 -9 -8 -7 -7 --------- Run | Yrd Mat Min Exi Min Mat Fac DSF Distress Signals 1 | . . . . . 1 . . Communications Jammed . | . . . . . . . . Distress Signals . | . . . . . . . . Times Spotted 53 | . 10 10 . 8 12 . 13 Peak Tracking Total 6 | . 3 3 . 3 5 . 6 Tactical Retreats 6 | . 1 1 . 1 1 . 2 Traps | -11 -10 -10 -10 -9 -8 -7 -7 ------- Run | Yrd Mat Min Exi Min Mat Fac DSF Traps Triggered 2 | . . . . . . . 2 Indirectly . | . . . . . . . . Trap Hack Attempts . | . . . . . . . . Triggered . | . . . . . . . . Disarmed . | . . . . . . . . Reprogrammed . | . . . . . . . . Reused . | . . . . . . . . Traps Extracted . | . . . . . . . . Installed . | . . . . . . . . Triggered . | . . . . . . . . Machines | -11 -10 -10 -10 -9 -8 -7 -7 ---------- Run | Yrd Mat Min Exi Min Mat Fac DSF Machines Disabled 1 | . 1 . . . . . . Max in Single Turn 1 | . 1 . . . . . . Machines Repaired . | . . . . . . . . Machines Dismantled . | . . . . . . . . Machines Sabotaged . | . . . . . . . . Overloaded Fab Kills . | . . . . . . . . Hacking | -11 -10 -10 -10 -9 -8 -7 -7 --------- Run | Yrd Mat Min Exi Min Mat Fac DSF Machines Accessed 12 | . 2 1 1 . 6 2 . Terminals 9 | . 2 . . . 5 2 . Fabricators . | . . . . . . . . Repair Stations . | . . . . . . . . Recycling Units . | . . . . . . . . Scanalyzers 1 | . . . . . 1 . . Garrison Access . | . . . . . . . . Total Hacks 26 | . 4 1 4 . 14 3 . Successful 15 | . 2 1 4 . 6 2 . Failed 10 | . 2 . . . 7 1 . Catastrophic 2 | . 1 . . . 1 . . Database Lockouts 1 | . . . . . 1 . . Manual 15 | . 4 . 1 . 9 1 . Terminals 16 | . 4 . . . 9 3 . Fabricators . | . . . . . . . . Repair Stations . | . . . . . . . . Recycling Units . | . . . . . . . . Scanalyzers 5 | . . . . . 5 . . Garrison Access . | . . . . . . . . Terminal Hacks 9 | . 1 1 4 . 2 1 . Record 4 | . . . 4 . . . . Open Door 1 | . . 1 . . . . . Open DSF 1 | . . . . . . 1 . Branch Access Points 3 | . 1 . . . 2 . . Fabricator Hacks . | . . . . . . . . Repair Station Hacks . | . . . . . . . . Recycling Unit Hacks . | . . . . . . . . Scanalyzer 3 | . . . . . 3 . . Insert Component 1 | . . . . . 1 . . Analyze 1 | . . . . . 1 . . Retrieve Study 1 | . . . . . 1 . . Garrison Access Hacks . | . . . . . . . . Unauthorized Hacks 3 | . 1 . . . 1 1 . Terminals 3 | . 1 . . . 1 1 . Botnet 3 | . 1 . . . 1 1 . Fabricators . | . . . . . . . . Repair Stations . | . . . . . . . . Recycling Units . | . . . . . . . . Scanalyzers . | . . . . . . . . Garrison Access . | . . . . . . . . Data Cores Recovered . | . . . . . . . . Used . | . . . . . . . . Hacking Detections 9 | . 2 . . . 5 2 . Full Trace Events . | . . . . . . . . Feedback Events . | . . . . . . . . Feedback Blocked . | . . . . . . . . Robot Schematics Acquired . | . . . . . . . . Robots Built . | . . . . . . . . Authchips . | . . . . . . . . Time . | . . . . . . . . Total Robot Build Rating . | . . . . . . . . Part Schematics Acquired 1 | . . . . . 1 . . Parts Built . | . . . . . . . . Authchips . | . . . . . . . . Time . | . . . . . . . . Total Part Build Rating . | . . . . . . . . Part Studies Acquired 1 | . . . . . 1 . . Parts Repaired . | . . . . . . . . Time . | . . . . . . . . Parts Recycled . | . . . . . . . . Recycled Matter . | . . . . . . . . Retrieved Matter . | . . . . . . . . Retrieved Components . | . . . . . . . . Parts Scanalyzed 1 | . . . . . 1 . . Part Schematics Acquired 1 | . . . . . 1 . . Parts Damaged . | . . . . . . . . Bothacking | -11 -10 -10 -10 -9 -8 -7 -7 ------------ Run | Yrd Mat Min Exi Min Mat Fac DSF Used RIF Installer . | . . . . . . . . Robots Hacked . | . . . . . . . . Non-combat . | . . . . . . . . Combat . | . . . . . . . . Robot Hacks Applied . | . . . . . . . . Relay Couplers Released . | . . . . . . . . Fabnet Peak Effective % . | . . . . . . . . Robots Rewired 3 | . . . 3 . . . . Allies Hacked . | . . . . . . . . Hacks Repelled . | . . . . . . . . Allies | -11 -10 -10 -10 -9 -8 -7 -7 -------- Run | Yrd Mat Min Exi Min Mat Fac DSF Total Allies 6 | . . 2 3 1 . . . Largest Group 3 | . . 2 3 3 1 . . Highest-Rated Group 42 | . . 42 24 31 31 . . Highest-Rated Ally 31 | . . 31 8 31 31 . . Total Orders . | . . . . . . . . Ally Attacks 49 | . . 11 . 31 7 . . Total Damage 409 | . . 85 . 241 83 . . Kills 6 | . . 2 . 3 1 . . Allies Corrupted . | . . . . . . . . Allies Melted . | . . . . . . . . Intel | -11 -10 -10 -10 -9 -8 -7 -7 ------- Run | Yrd Mat Min Exi Min Mat Fac DSF Active Infowar (turns) 77 | . . . . . 77 . . Structural 77 | . . . . . 77 . . Robot Analysis Total . | . . . . . . . . Derelict Logs Recovered 2 | . . 1 . 1 . . . Drone Launches . | . . . . . . . . Drone Recoveries . | . . . . . . . . Exploration | -11 -10 -10 -10 -9 -8 -7 -7 ------------- Run | Yrd Mat Min Exi Min Mat Fac DSF Turns Passed 3492 | 75 530 585 930 479 461 194 238 Spaces Moved 2263 | 41 329 420 678 329 264 109 93 Core 6 | 6 . . . . . . . Treads 151 | 35 116 . . . . . . Legs 2106 | . 213 420 678 329 264 109 93 Wheels . | . . . . . . . . Hover . | . . . . . . . . Flight . | . . . . . . . . Fastest Speed 50 | 50 120 120 120 130 105 175 105 Average Speed 132 | 143 134 120 132 132 117 175 163 Slowest Speed 240 | 160 240 120 190 190 126 175 185 Overloaded Moves . | . . . . . . . . Propulsion Burnouts . | . . . . . . . . Robots Hopped . | . . . . . . . . Potential Cave-ins . | . . . . . . . . Cave-ins Triggered . | . . . . . . . . Exploration Rate (%) 47 | 3 51 74 91 62 28 3 67 Regions Visited 7 Branch Regions 3 Pre-discovered Areas 3 | . . 1 1 1 . . . Known Exits Taken 3 | . 1 . . . 1 1 . Unknown Exits Taken 4 | 1 . 1 1 1 . . . Scrap Searched 3 | . . 1 . 2 . . . Spaces Dug 1 | . . . . . . 1 . Terrain Destroyed 9 | . . . . . . 1 8 Melee 1 | . . . . . . 1 . Projectile . | . . . . . . . . AOE 8 | . . . . . . . 8 Terrain Rammed . | . . . . . . . . Walls Destroyed . | . . . . . . . . Machines Disabled . | . . . . . . . . Actions | -11 -10 -10 -10 -9 -8 -7 -7 --------- Run | Yrd Mat Min Exi Min Mat Fac DSF Total 2586 | 57 392 465 709 348 362 111 142 Wait 94 | . 23 20 . 1 31 . 19 Move 2256 | 40 328 419 677 328 263 108 93 Hop . | . . . . . . . . Pick Up 43 | 11 13 1 4 1 9 . 4 Fast Attach 4 | . . . . 1 3 . . Attach 28 | 6 5 2 . 1 9 2 3 Detach . | . . . . . . . . Swap 11 | . 1 2 . . 6 . 2 Drop 23 | . 8 1 3 1 10 . . Fire 75 | . 14 20 . 11 23 . 7 Melee 22 | . . . . . 7 1 14 Ram . | . . . . . . . . Kick 5 | . . . . 4 1 . . Crush . | . . . . . . . . Escape Stasis . | . . . . . . . . Rewire 25 | . . . 25 . . . . Trap . | . . . . . . . . Miscellaneous . | . . . . . . . . Route ------- -11/Scrapyard -10/Materials (discovered 2 exits: [*Mat] / *Min) -10/Mines (discovered 3 exits: [*Mat] / *Exi / [*Sub]) -10/Exiles -9/Mines -8/Materials (discovered 3 exits: *Fac / Sto x2) -7/Factory -7/DSF History --------- Turn | Location | Event 32 | -11/Scrapyard | Discovered new exit (range 16) 76 | -11/Scrapyard | Entered Materials 341 | -10/Materials | Build established: Mutant 348 | -10/Materials | Identified exit to Mines 449 | -10/Materials | Discovered new exit (range 4) 606 | -10/Materials | Entered Mines 639 | -10/Mines | Met a Derelict bent on vengeance 690 | -10/Mines | Found the Drone Emporium 988 | -10/Mines | Discovered new exit (range 12) 1132 | -10/Mines | Learned location of Recycling (-8) 1138 | -10/Mines | Discovered new exit (range 6) 1186 | -10/Mines | Deemed a non-threat by the Exiles lab entrance 1186 | -10/Mines | Discovered new exit (range 5) 1191 | -10/Mines | Entered Exiles 1191 | -10/Exiles | Found Exiles lab destroyed 1509 | -10/Exiles | Discovered new exit (range 15) 1586 | -10/Exiles | Learned location of Zion (-7) 2121 | -10/Exiles | Entered Mines 2121 | -9/Mines | Accompanied by 3 allies 2140 | -9/Mines | Received a Rocket Launcher from a helpful Derelict 2386 | -9/Mines | Assembled infested the area 2391 | -9/Mines | Assisted by a Guerilla fighting off Assembled 2410 | -9/Mines | Core integrity fell below 50% 2448 | -9/Mines | Lost 3 allies 2494 | -9/Mines | Received a Mining Laser from a helpful Derelict 2594 | -9/Mines | Discovered new exit (range 6) 2600 | -9/Mines | Entered Materials 2600 | -8/Materials | Accompanied by 1 ally 2600 | -8/Materials | Evolved 4 slots: Propulsion x1, Utility x3 2676 | -8/Materials | Identified exit to Storage 2915 | -8/Materials | Central database locked down 2943 | -8/Materials | Discovered new exit (range 4) 2947 | -8/Materials | Identified exit to Factory 3061 | -8/Materials | Entered Factory 3061 | -7/Factory | Evolved 2 slots: Utility x2 3159 | -7/Factory | Build established: Scavenger-Mutant 3255 | -7/Factory | Identified exit to DSF 3255 | -7/Factory | Entered DSF 3303 | -7/DSF | Additional patrols routed to DSF 3493 | -7/DSF | Self-destructed Last Messages --------------- 03450_ Acquired Corrupted Imp. Carbon-fiber Leg. 03451_ Integrated Corrupted Imp. Carbon-fiber Leg (+1). [Achievement: A Problem For Future Me] 03451_ Complication: Energy sink damages Corrupted Imp. Carbon-fiber Leg (-24). 03453_ Acquired 39 matter. 03464_ C-30 ARC bursts open, deploying its payload. 03464_ L-41 Fighter unfolds itself. 03464_ G-47 Trooper unfolds itself. 03475_ Reactive Plating destroyed. 03480_ Triggered Alarm Trap. 03480_ An alarm sounds. 03484_ Hvy. Laser destroyed. 03486_ Heat Sink destroyed. 03486_ C-30 ARC bursts open, deploying its payload. 03486_ G-50 Soldier unfolds itself. 03486_ G-47 Trooper unfolds itself. Map ----- +----------------------------------------------------+ | | | | | ?????????????????????????????????????? | | ?????????????????????????????????????? | | ?????????????????????????????????????? | | ?????????????????????????????????????? | | ?????????????????????????###?????????# | | ?????????????????????????# #?????????# | | ????????????????????######"##???????## | | ????????????????????#!!!!!% #########" | | ????????????????????#!!!!! #===# ##" | | ????????????????????# | | ???????????????????## % | | ???????????????????#"## ### # ## | | ????????????????????#%% ### # ### | | ????????????????????# ! ########## | | ????????????????????# #??????#== | | ????????????????????# #??????#== | | ????????????????????##" ###??????### | | ????????????????????#]] !!#??????# | | ????????????????????#]] !#??????# | | ????????????????????#]] #??????# | | ??????#?????########## # #??????### | | ??????# ???#!!!#!!!## ! # #????????# | | ??????# ##!!!#!!!## %! #!!!# ## | | ??????#!! g @l ^ | | ??????#!! g g | | ??????#!! %g g | | ??????#!! ##!!!#===## a %##!!!#[[[## | | ??????#!! ?#!!!#===### "%###!!!#[[[?# | | ??????### ??#########?? "#???#####??# | | ???????? ?????????????? ==?????????? | | ???????#??????????????? ==#????????? | | ??????????????????????? ==#????????? | | ??????????????????????? ###????????? | | ??????????????????????? /??????????? | | ??????????????????????? /??????????? | | ???????????????????????? //?????????? | | ???????????????????????? ##?????????? | | ???????????????????????? ????????????? | | ?????????????????????????????????????? | | ?????????????????????????????????????? | | ?????????????????????????????????????? | | ?????????????????????????????????????? | | ?????????????????????????????????????? | | ?????????????????????????????????????? | | ?????????????????????????????????????? | | ?????????????????????????????????????? | | ?????????????????????????????????????? | | ?????????????????????????????????????? | +----------------------------------------------------+ Best States ------------- Heat Dissipation 44 Coolant Potential 50 Energy Generation 18 Energy Capacity 250 Matter Stores 300 Matter Capacity 300 Sight Range 16 Terrain Scan Density 10 Armor Coverage 450 Resistance: KI 20 Evasion (%) 55 Recoil Reduction 2 Offensive Hacking 11 Item Schematics ----------------- Med. Storage Unit | -8/Materials | Scanalyzed Robot Schematics ------------------ None Fabricated ------------ Nothing Repaired ---------- Nothing Studied --------- Carbon-fiber Leg | -8/Materials | Hacked Alien Tech Used ----------------- None Achievements -------------- A Problem For Future Me Item+ Challenges ------------ None Game ------ Seed ExplosiveDamperMagmablaster Manual? 0 Play Time 00:30:39 Cumulative 44.8 hours Start 2026.07.28 @ 18:00:57 End 2026.07.28 @ 18:31:12 Sessions 1 Manual Loads 0 Difficulty Rogue Special Mode None Game No. 66 Rogue 66 Adventurer 0 Explorer 0 Win Type - Total 1 Types 1/0/0/0/0/0/0/0/0/0 Lore% 28 Gallery% 32 Achievement% 22 Wizard Run 0 Options --------- Layout 1 ASCII 0 Keyboard 0 Movement Mouse Keybinds 0 Fullscreen 2 Font 32/SmallcapsGlow Map View 50x35 Zoom Use 0% Tactical HUD 1 Map Filters NONE Filters NONE Steam 1 RUN: 2277c020-fbb6-4393-b0bb-78420feed7dc